bitfinex-derivatives/quotes_BTCF0:USTF0_20250709
["timestamp","ask_amount","ask_price","bid_price","bid_amount"]
[1752098257162,1.36097706,111030.0,111020.0,0.50951048]
[1752098257364,1.36097706,111030.0,111020.0,0.5095197]
[1752098259367,1.36097706,111030.0,111020.0,0.23341613]
[1752098259563,1.36097706,111030.0,111020.0,0.5095197]
[1752098260071,1.36097706,111030.0,111020.0,0.49896106]
[1752098260256,1.36097706,111030.0,111020.0,0.48560677]
[1752098260464,1.36097706,111030.0,111020.0,0.49896584]
[1752098260667,1.72177706,111030.0,111020.0,0.20752227]
[1752098260855,1.72177706,111030.0,111020.0,0.21808102]
[1752098261168,1.72177706,111030.0,111020.0,0.48362584]
[1752098261758,1.99788063,111030.0,111020.0,0.03799602]
[1752098262068,1.99790059,111030.0,111020.0,0.02743717]
[1752098262664,1.72179702,111030.0,111020.0,0.02743717]
[1752098263368,1.91692795,111030.0,111020.0,0.02743717]
[1752098264557,1.36472081,111030.0,111020.0,0.02743717]
[1752098264762,1.64082438,111030.0,111020.0,0.02743717]
[1752098266171,1.64382438,111030.0,111020.0,0.02743717]
[1752098266371,1.64682438,111030.0,111020.0,0.02743717]
[1752098267368,1.60548257,111030.0,111020.0,0.02743717]
[1752098267571,1.64685168,111030.0,111020.0,0.02743717]
[1752098268573,1.75479067,111030.0,111020.0,0.02743717]
[1752098269173,1.64685168,111030.0,111020.0,0.02743717]
[1752098270767,0.1800848,111020.0,111010.0,0.2935424]
[1752098270966,0.68137968,111020.0,111010.0,0.52106579]
[1752098271166,0.68137968,111020.0,111010.0,0.24496222]
[1752098271368,0.68137968,111020.0,111010.0,0.70116679]
[1752098271563,0.68137968,111020.0,111010.0,0.52106579]
[1752098271774,0.68137968,111020.0,111010.0,0.70116679]
[1752098271969,0.68137968,111020.0,111010.0,0.69116679]
[1752098272368,0.68137968,111020.0,111010.0,0.41506646]
[1752098272574,0.95748325,111020.0,111010.0,0.51106903]
[1752098272774,1.31828325,111020.0,111010.0,0.51106903]
[1752098273175,1.32028325,111020.0,111010.0,0.51106903]
[1752098273377,1.33904069,111020.0,111010.0,0.21752663]
[1752098273571,1.33904069,111020.0,111010.0,0.02752663]
[1752098273876,1.34807873,111020.0,111010.0,0.02752663]
[1752098274277,1.25079653,111020.0,111010.0,0.02752663]
[1752098274471,1.25079653,111020.0,111000.0,0.00180172]
[1752098274472,0.180101,111010.0,111000.0,0.00180172]
[1752098274667,1.92767553,111010.0,111000.0,0.00180172]
[1752098275666,1.99846746,111010.0,111000.0,0.00180172]
[1752098277778,2.00502746,111010.0,111000.0,0.00180172]
[1752098278379,1.72892389,111010.0,111000.0,0.00180172]
[1752098281076,2.00502746,111010.0,111000.0,0.00180172]
[1752098283179,2.00702746,111010.0,111000.0,0.00180172]
[1752098283380,2.00902746,111010.0,111000.0,0.00180172]
[1752098283580,2.00878746,111010.0,111000.0,0.00180172]
[1752098284184,1.96741835,111010.0,111000.0,0.00180172]
[1752098284384,2.00914374,111010.0,111000.0,0.00180172]
[1752098285186,1.92826546,111010.0,111000.0,0.00180172]
[1752098286087,1.6104365,111010.0,111000.0,0.00180172]
[1752098286286,1.65216047,111010.0,111000.0,0.00180172]
[1752098286585,1.3760569,111010.0,111000.0,0.02945885]
[1752098286780,1.65216047,111010.0,111000.0,0.02945885]
[1752098287086,1.73303875,111010.0,111000.0,0.02945885]
[1752098287292,1.65216047,111010.0,111000.0,0.02945885]
[1752098289081,1.73303875,111010.0,111000.0,0.02945885]
[1752098289385,1.65216047,111010.0,111000.0,0.02945885]
[1752098290082,1.73303875,111010.0,111000.0,0.02945885]
[1752098291488,2.00914232,111010.0,111000.0,0.02945885]
[1752098294889,2.00914232,111010.0,111000.0,0.01537692]
[1752098295094,2.00914232,111010.0,111000.0,0.02945885]
[1752098296601,2.00914232,111010.0,111000.0,0.01588365]
[1752098299100,2.00914232,111010.0,111000.0,0.02947259]
[1752098299603,1.64834232,111010.0,111000.0,0.02947259]
[1752098299807,2.00914232,111010.0,111000.0,0.02947259]
[1752098300003,2.00914232,111010.0,111000.0,0.01588365]
[1752098300203,2.00914232,111010.0,111000.0,0.0294753]
[1752098301101,1.43399518,111010.0,111000.0,0.0294753]
[1752098301309,1.3758569,111010.0,111000.0,0.0294753]
[1752098301503,1.65196047,111010.0,111000.0,0.0294753]
[1752098301808,1.92806404,111010.0,111000.0,0.0294753]
[1752098301999,1.65196047,111010.0,111000.0,0.0294753]
[1752098302199,1.75989946,111010.0,111000.0,0.0294753]
[1752098302708,1.75917946,111010.0,111000.0,0.0294753]
[1752098303706,1.75913946,111010.0,111000.0,0.0294753]
[1752098304712,1.48295589,111010.0,111000.0,0.0294753]
[1752098304906,1.75905946,111010.0,111000.0,0.0448453]
[1752098305507,1.75905946,111010.0,111000.0,0.32094887]
[1752098305708,1.75901946,111010.0,111000.0,0.0448453]
[1752098305913,1.75901946,111010.0,111000.0,0.32094887]
[1752098306315,1.12909946,111010.0,111000.0,0.50106607]
[1752098306511,0.22843399,111010.0,111000.0,0.78773059]
[1752098306704,0.12665308,111020.0,111010.0,0.180101]
[1752098306902,0.77215702,111020.0,111010.0,1.35554079]
[1752098307102,0.14227702,111020.0,111010.0,1.60554079]
[1752098307302,0.69118843,111020.0,111010.0,1.59194532]
[1752098307503,0.88740323,111020.0,111010.0,1.06584175]
[1752098307709,0.07743843,111020.0,111010.0,1.60250374]
[1752098307909,0.88740323,111020.0,111010.0,1.60250374]
[1752098308217,0.88740323,111020.0,111010.0,1.35250374]
[1752098308407,0.89040323,111020.0,111010.0,1.36173463]
[1752098309111,0.89040323,111020.0,111010.0,1.35250374]
[1752098309810,0.89040323,111020.0,111010.0,1.0803995]
[1752098309811,0.89032323,111020.0,111010.0,1.0803995]
[1752098310007,0.89032323,111020.0,111010.0,0.8628475]
[1752098310212,0.89032323,111020.0,111010.0,0.3403165]
[1752098310213,0.90179323,111020.0,111010.0,0.3403165]
[1752098310413,1.52377037,111020.0,111010.0,0.06258127]
[1752098310615,1.52377037,111020.0,111010.0,0.05202285]
[1752098310810,0.180101,111010.0,111000.0,0.00180172]
[1752098311011,0.92105556,111010.0,111000.0,0.00180172]
[1752098311817,0.95992556,111010.0,111000.0,0.00180172]
[1752098312110,1.04084876,111010.0,111000.0,0.00180172]
[1752098312718,1.23602913,111010.0,111000.0,0.00180172]
[1752098312910,0.1801172,111000.0,110990.0,0.00180188]
[1752098313108,1.54616986,111000.0,110990.0,0.00180188]
[1752098313417,1.58798711,111000.0,110990.0,0.18193538]
[1752098313720,1.58798711,111000.0,110990.0,0.00180188]
[1752098314119,1.58898711,111000.0,110990.0,0.00180188]
[1752098314322,1.59098711,111000.0,110990.0,0.19730538]
[1752098314514,1.59098711,111000.0,110990.0,0.00180188]
[1752098314818,1.59098711,111000.0,110990.0,0.18193538]
[1752098316115,1.31472252,111000.0,110990.0,0.18193538]
[1752098316313,1.62278711,111000.0,110990.0,0.18193538]
[1752098317116,1.62278711,111000.0,110990.0,0.00180188]
[1752098319817,1.58391711,111000.0,110990.0,0.00180188]
[1752098320015,1.8839717,111000.0,110990.0,0.00180188]
[1752098320216,1.8816455,111000.0,110990.0,0.00180188]
[1752098320415,1.60538091,111000.0,110990.0,0.00180188]
[1752098321612,1.32911632,111000.0,110990.0,0.00180188]
[1752098321817,1.60538091,111000.0,110990.0,0.00180188]
[1752098322821,1.60538091,111000.0,110990.0,0.02995223]
[1752098323719,1.60514091,111000.0,110990.0,0.02995223]
[1752098326122,1.60514091,111000.0,110990.0,0.0158844]
[1752098326323,1.60514091,111000.0,110990.0,0.02995106]
[1752098327225,1.60502091,111000.0,110990.0,0.04531106]
[1752098327818,1.60502091,111000.0,110990.0,0.22544456]
[1752098327819,0.69947632,111000.0,110990.0,0.22544456]
[1752098328024,0.96041632,111000.0,110990.0,0.22544456]
[1752098328221,0.94416632,111000.0,110990.0,0.22544456]
[1752098328523,0.96041632,111000.0,110990.0,0.22544456]
[1752098328826,0.94133907,111000.0,110990.0,0.25036456]
[1752098329022,0.12277479,111000.0,110990.0,0.25036456]
[1752098329226,0.09127479,111000.0,110990.0,0.88742915]
[1752098329527,0.70422479,111000.0,110990.0,0.92722915]
[1752098330423,0.88434199,111000.0,110990.0,0.92722915]
[1752098331023,0.88434199,111000.0,110990.0,0.93778991]
[1752098331825,0.88234199,111000.0,110990.0,0.93778991]
[1752098332024,0.88234199,111000.0,110990.0,0.93878991]
[1752098332222,0.25314199,111000.0,110990.0,1.11898191]
[1752098332424,0.67038479,111000.0,110990.0,1.11898191]
[1752098332625,0.67038479,111000.0,110990.0,0.93878991]
[1752098333124,0.67038479,111000.0,110990.0,0.93878898]
[1752098333321,0.67030479,111000.0,110990.0,0.93878898]
[1752098333521,0.67030479,111000.0,110990.0,1.10842115]
[1752098333722,0.85042199,111000.0,110990.0,0.92822915]
[1752098333921,0.85042199,111000.0,110990.0,0.93878893]
[1752098334125,0.66930479,111000.0,110990.0,0.93978893]
[1752098335824,0.66930479,111000.0,110990.0,0.93978918]
[1752098336526,0.66957183,111000.0,110990.0,0.93978918]
[1752098338924,0.66957183,111000.0,110990.0,0.93952809]
[1752098341130,0.66957183,111000.0,110990.0,0.93951196]
[1752098342835,0.84968903,111000.0,110990.0,0.93951196]
[1752098343733,0.84968903,111000.0,110990.0,0.93951203]
[1752098343935,0.84968903,111000.0,110990.0,0.93959181]
[1752098344127,0.88158903,111000.0,110990.0,0.93269181]
[1752098344324,0.92803903,111000.0,110990.0,0.05767372]
[1752098344628,0.95182903,111000.0,110990.0,0.33393831]
[1752098344827,0.95182903,111000.0,110990.0,0.51407181]
[1752098345023,1.58889362,111000.0,110990.0,0.03175401]
[1752098345426,0.1801497,110980.0,110970.0,0.55825655]
[1752098345623,0.8488297,110980.0,110970.0,0.72261806]
[1752098345830,1.19657602,110980.0,110970.0,0.58278396]
[1752098346033,1.19657602,110980.0,110970.0,0.40261806]
[1752098346232,1.19657602,110980.0,110970.0,0.57222252]
[1752098346433,1.19657602,110980.0,110970.0,0.39205662]
[1752098346827,1.55737602,110980.0,110970.0,0.21142252]
[1752098347227,1.55737602,110980.0,110970.0,0.21442252]
[1752098347739,1.55737602,110980.0,110970.0,0.21842252]
[1752098348635,1.58757602,110980.0,110970.0,0.02096457]
[1752098349638,1.58757602,110980.0,110970.0,0.01896457]
[1752098349839,1.58757602,110980.0,110970.0,0.005]
[1752098350639,1.66849922,110980.0,110970.0,0.005]
[1752098351942,1.58757602,110980.0,110970.0,0.005]
[1752098352344,1.39223463,110980.0,110970.0,0.005]
[1752098352644,1.66849922,110980.0,110970.0,0.005]
[1752098354146,1.66849922,110980.0,110970.0,0.003]
[1752098354452,1.58757602,110980.0,110970.0,0.003]
[1752098356846,1.58857602,110980.0,110970.0,0.002]
[1752098359248,0.1801659,110970.0,110960.0,0.00180237]
[1752098359446,0.93600222,110970.0,110960.0,0.01588908]
[1752098359749,0.96062222,110970.0,110960.0,0.01588908]
[1752098360744,0.96962471,110970.0,110960.0,0.01588908]
[1752098360942,0.97162471,110970.0,110960.0,0.01588908]
[1752098367457,0.69536012,110970.0,110960.0,0.01588918]
[1752098367660,0.97162471,110970.0,110960.0,0.01588918]
[1752098369658,0.93181471,110970.0,110960.0,0.01588918]
[1752098369860,0.97162471,110970.0,110960.0,0.01588918]
[1752098372463,0.65555012,110970.0,110960.0,0.01588918]
[1752098372656,0.97162471,110970.0,110960.0,0.01588918]
[1752098372962,0.97162471,110970.0,110960.0,0.02997603]
[1752098373365,0.97162471,110970.0,110960.0,0.02997607]
[1752098374264,1.05254791,110970.0,110960.0,0.02997607]
[1752098376065,1.03735791,110970.0,110960.0,0.02997607]
[1752098378163,0.99687618,110970.0,110960.0,0.02997607]
[1752098378371,0.93114298,110970.0,110960.0,0.02997607]
[1752098379363,0.57034298,110970.0,110960.0,0.02997567]
[1752098379566,0.93114298,110970.0,110960.0,0.02997567]
[1752098380468,0.57034298,110970.0,110960.0,0.02997567]
[1752098381570,0.93114298,110970.0,110960.0,0.02997567]
[1752098382273,0.93114298,110970.0,110960.0,0.02997596]
[1752098384168,0.65487839,110970.0,110960.0,0.02997596]
[1752098384374,0.65487839,110970.0,110960.0,0.04054131]
[1752098384574,0.93114298,110970.0,110960.0,0.04054131]
[1752098384871,1.20740757,110970.0,110960.0,0.02465229]
[1752098385078,0.1802309,110930.0,110920.0,0.00180302]
[1752098385265,0.83348549,110930.0,110920.0,0.00180302]
[1752098385472,1.5034565,110930.0,110920.0,0.01918851]
[1752098385672,1.5686565,110930.0,110920.0,0.01918851]
[1752098386169,1.5686565,110930.0,110920.0,0.00180302]
[1752098386576,1.2078565,110930.0,110920.0,0.00180302]
[1752098387166,0.5819765,110930.0,110920.0,0.00180302]
[1752098387373,1.1936265,110930.0,110920.0,0.01688302]
[1752098387572,1.1936265,110930.0,110920.0,0.00180302]
[1752098387774,1.5544265,110930.0,110920.0,0.00180302]
[1752098388271,0.9265865,110930.0,110920.0,0.00180302]
[1752098388469,1.5706965,110930.0,110920.0,0.00180302]
[1752098389580,1.69157452,110930.0,110920.0,0.00180302]
[1752098389874,1.06365452,110930.0,110920.0,0.00180302]
[1752098390082,1.69153452,110930.0,110920.0,0.00180302]
[1752098390269,1.67247351,110930.0,110920.0,0.00180302]
[1752098390665,1.67247351,110930.0,110920.0,0.00580302]
[1752098390874,1.04459351,110930.0,110920.0,0.00580302]
[1752098391078,1.67251351,110930.0,110920.0,0.00580302]
[1752098391376,1.67574342,110930.0,110920.0,0.00180302]
[1752098392281,1.59511497,110930.0,110920.0,0.00180302]
[1752098394879,1.66694107,110930.0,110920.0,0.00180302]
[1752098395385,1.66686241,110930.0,110920.0,0.00180302]
[1752098395570,0.1802471,110920.0,110910.0,0.00180318]
[1752098395776,1.04048367,110920.0,110910.0,0.00180318]
[1752098396877,1.04148367,110920.0,110910.0,0.00180318]
[1752098397480,1.04348367,110920.0,110910.0,0.00180318]
[1752098398576,0.96303251,110920.0,110910.0,0.00180318]
[1752098398775,1.59083251,110920.0,110910.0,0.00180318]
[1752098399176,1.40398436,110920.0,110910.0,0.00180318]
[1752098399373,1.68024895,110920.0,110910.0,0.00180318]
[1752098400283,1.59179779,110920.0,110910.0,0.01572766]
[1752098400482,1.59375779,110920.0,110910.0,0.01572765]
[1752098401493,0.96599779,110920.0,110910.0,0.00180318]
[1752098401782,0.92677779,110920.0,110910.0,0.03082235]
[1752098402081,0.04740082,110920.0,110910.0,0.83421097]
[1752098402284,0.04740082,110920.0,110910.0,1.60609555]
[1752098402583,1.32681116,110940.0,110930.0,0.1802307]
[1752098402786,1.87404,110940.0,110930.0,1.17809529]
[1752098403085,1.50702566,110940.0,110930.0,1.64148329]
[1752098403389,0.8079345,110940.0,110930.0,1.39148329]
[1752098404181,0.8079345,110940.0,110930.0,1.41605329]
[1752098404585,0.8079345,110940.0,110930.0,1.41705329]
[1752098405388,0.8079345,110940.0,110930.0,1.41905329]
[1752098405578,0.8079345,110940.0,110930.0,1.42819129]
[1752098405778,0.08045116,110950.0,110940.0,0.1802145]
[1752098405975,0.1801982,110950.0,110940.0,0.95266009]
[1752098406175,0.1801982,110950.0,110940.0,1.21649701]
[1752098406378,1.05073754,110960.0,110950.0,0.1801982]
[1752098406584,1.06692754,110960.0,110950.0,0.88751279]
[1752098406893,0.8528431,110960.0,110950.0,0.88751279]
[1752098407385,0.8528431,110960.0,110950.0,0.90145833]
[1752098407689,0.3047667,110970.0,110960.0,0.180182]
[1752098407890,0.3047667,110970.0,110960.0,0.88857659]
[1752098407891,0.9482567,110970.0,110960.0,0.88857659]
[1752098408087,0.9323267,110970.0,110960.0,0.88857659]
[1752098408293,0.8581158,110970.0,110960.0,0.88857659]
[1752098408587,0.62956,110970.0,110960.0,0.88857659]
[1752098408785,0.002,110970.0,110960.0,0.88857659]
[1752098408989,0.78880386,110990.0,110980.0,0.1801495]
[1752098408990,0.08045116,110990.0,110980.0,0.1801495]
[1752098409191,0.85095883,111000.0,110990.0,0.1801333]
[1752098409390,0.21996393,111000.0,110990.0,0.1962933]
[1752098409695,0.38367103,111000.0,110990.0,0.5802133]
[1752098409996,0.05059,111000.0,110990.0,0.6121133]
[1752098410290,0.62948,111000.0,110990.0,0.88837789]
[1752098410786,0.002,111000.0,110990.0,0.88937789]
[1752098411193,0.002,111000.0,110990.0,0.7923053]
[1752098411386,0.002,111000.0,110990.0,1.08056805]
[1752098411692,0.002,111010.0,111000.0,0.1801171]
[1752098411894,0.002,111010.0,111000.0,0.84908169]
[1752098412094,0.002,111010.0,111000.0,1.27925769]
[1752098412295,0.002,111010.0,111000.0,1.02925769]
[1752098412994,0.002,111010.0,111000.0,1.03025769]
[1752098413294,0.002,111010.0,111000.0,2.28485769]
[1752098413594,0.002,111010.0,111000.0,2.28585769]
[1752098414594,0.002,111010.0,111000.0,2.30897769]
[1752098414794,0.002,111010.0,111000.0,2.3778122]
[1752098415295,0.1821008,111010.0,111000.0,1.8525371]
[1752098415499,0.0348,111010.0,111000.0,1.8525371]
[1752098415898,0.2149008,111010.0,111000.0,0.5979371]
[1752098416199,0.2149008,111010.0,111000.0,0.6140971]
[1752098416883,0.0348,111010.0,111000.0,1.2412571]
[1752098417794,0.0348,111010.0,111000.0,1.5863562]
[1752098418397,0.2149008,111010.0,111000.0,1.5863562]
[1752098418892,0.0348,111010.0,111000.0,1.5863562]
[1752098419095,0.002,111010.0,111000.0,1.5863562]
[1752098419598,0.002,111010.0,111000.0,1.5701962]
[1752098421296,0.002,111010.0,111000.0,1.58748137]
[1752098422996,0.0347,111010.0,111000.0,1.58748137]
[1752098423799,0.0347,111010.0,111000.0,1.24238227]
[1752098424495,0.0652,111010.0,111000.0,1.24238227]
[1752098425901,0.0652,111010.0,111000.0,1.58748137]
[1752098427701,0.0652,111010.0,111000.0,1.56436137]
[1752098427904,0.0652,111010.0,111000.0,1.58748137]
[1752098430805,0.0347,111010.0,111000.0,1.58748137]
[1752098431204,0.0347,111010.0,111000.0,1.56436137]
[1752098431405,0.0347,111010.0,111000.0,1.58748137]
[1752098434713,0.10662561,111010.0,111000.0,1.58748137]
[1752098434911,0.10662561,111010.0,111000.0,1.51847562]
[1752098436512,0.10662561,111010.0,111000.0,1.79456897]
[1752098437315,0.10662561,111010.0,111000.0,1.51847562]
[1752098438414,0.10662561,111010.0,111000.0,1.24238227]
[1752098438714,0.10662561,111010.0,111000.0,1.51847562]
[1752098439918,0.10662561,111010.0,111000.0,1.24238227]
[1752098440118,0.10662561,111010.0,111000.0,1.51847562]
[1752098441518,0.18707677,111010.0,111000.0,1.51847562]
[1752098441719,0.10662561,111010.0,111000.0,1.51847562]
[1752098442217,0.14845116,111010.0,111000.0,1.51847562]
[1752098442419,0.18707677,111010.0,111000.0,1.51847562]
[1752098442816,0.13244507,111010.0,111000.0,1.51847562]
[1752098443017,0.11907677,111010.0,111000.0,1.51847562]
[1752098443209,0.11907677,111010.0,111000.0,1.24190227]
[1752098443412,0.11907677,111010.0,111000.0,1.51799562]
[1752098444121,0.03862561,111010.0,111000.0,1.79408897]
[1752098446025,0.03862561,111010.0,111000.0,1.82508897]
[1752098447323,0.06932561,111010.0,111000.0,1.82508897]
[1752098450930,0.06932561,111010.0,111000.0,1.70672015]
[1752098452132,0.01922891,111010.0,111000.0,1.70672015]
[1752098452630,0.01922891,111010.0,111000.0,1.70796015]
[1752098452828,0.0311,111020.0,111010.0,0.1801009]
[1752098453028,0.0311,111020.0,111010.0,0.77288984]
[1752098454132,0.0331,111020.0,111010.0,0.77288984]
[1752098455529,0.0663,111020.0,111010.0,0.77288984]
[1752098456230,0.0663,111020.0,111010.0,0.79724984]
[1752098460127,0.08209,111020.0,111010.0,0.79724984]
[1752098461525,0.0663,111020.0,111010.0,0.79724984]
[1752098462529,0.0663,111020.0,111010.0,1.42392984]
[1752098464234,0.10076683,111020.0,111010.0,1.42392984]
[1752098464935,0.10076683,111020.0,111010.0,1.43800745]
[1752098465643,0.10076683,111020.0,111010.0,1.42392984]
[1752098465941,0.10076683,111020.0,111010.0,1.43800745]
[1752098469938,0.10076683,111020.0,111010.0,1.22109851]
[1752098470141,0.10076683,111020.0,111010.0,1.43800745]
[1752098470942,0.03646683,111020.0,111010.0,1.43800745]
[1752098471143,0.0351,111040.0,111030.0,0.1800685]
[1752098471351,0.0351,111040.0,111030.0,0.45054505]
[1752098471537,0.0351,111040.0,111030.0,0.81134505]
[1752098471739,0.0351,111040.0,111030.0,2.06458505]
[1752098472146,0.0351,111040.0,111030.0,2.07381156]
[1752098472443,0.0666,111040.0,111030.0,2.07381156]
[1752098472637,0.0666,111040.0,111030.0,2.2927205]
[1752098473140,0.002,111050.0,111030.0,2.143452]
[1752098473442,0.0342,111050.0,111040.0,0.78198124]
[1752098473640,0.002,111050.0,111040.0,0.81132885]
[1752098473834,0.002,111050.0,111040.0,0.87612885]
[1752098474239,0.0342,111050.0,111040.0,0.87612885]
[1752098475054,0.0342,111050.0,111040.0,0.81132885]
[1752098475549,0.0342,111050.0,111040.0,0.59441991]
[1752098475845,0.0342,111050.0,111040.0,0.81132885]
[1752098476546,0.0653,111050.0,111040.0,0.81132885]
[1752098477146,0.0653,111050.0,111040.0,0.81332885]
[1752098477540,0.0653,111050.0,111040.0,0.59641991]
[1752098477739,0.0653,111050.0,111040.0,0.81332885]
[1752098480550,0.0653,111050.0,111040.0,0.81432484]
[1752098481652,0.08066,111050.0,111040.0,0.82488005]
[1752098482149,0.08066,111050.0,111040.0,0.60797111]
[1752098482347,0.08066,111050.0,111040.0,0.82488005]
[1752098482544,0.0653,111050.0,111040.0,0.82488005]
[1752098484247,0.0342,111050.0,111040.0,0.81432484]
[1752098484438,0.58584732,111080.0,111050.0,0.0450054]
[1752098484643,0.0618,111070.0,111060.0,0.6550454]
[1752098484842,0.11170948,111070.0,111060.0,0.7293925]
[1752098485155,0.09634948,111070.0,111060.0,0.7293925]
[1752098485654,0.06544948,111070.0,111060.0,0.7607925]
[1752098485850,0.06544948,111070.0,111060.0,1.22631038]
[1752098486152,8e-08,111070.0,111060.0,1.59766381]
[1752098486345,0.002,111080.0,111070.0,0.1800036]
[1752098486544,0.002,111080.0,111070.0,2.12687614]
[1752098487356,1e-07,111080.0,111070.0,2.20060728]
[1752098487953,0.0030001,111080.0,111070.0,2.20060728]
[1752098488154,1e-07,111080.0,111070.0,2.20060728]
[1752098488855,1e-07,111080.0,111070.0,2.70060728]
[1752098489462,0.0643,111090.0,111080.0,0.1799874]
[1752098489463,0.0332,111090.0,111080.0,0.1799874]
[1752098489650,0.0332,111090.0,111080.0,0.87505994]
[1752098489957,0.002,111090.0,111080.0,0.87505994]
[1752098490555,0.002,111090.0,111080.0,0.87605994]
[1752098490759,0.002,111090.0,111080.0,0.87705994]
[1752098491250,0.0347,111090.0,111080.0,0.87705994]
[1752098492357,0.0347,111090.0,111080.0,0.87705408]
[1752098493260,0.0347,111090.0,111080.0,0.66931924]
[1752098493561,0.0347,111090.0,111080.0,0.88622818]
[1752098498164,0.0347,111090.0,111080.0,1.10313712]
[1752098498165,0.002,111090.0,111080.0,1.10313712]
[1752098498358,0.002,111090.0,111080.0,1.11368756]
[1752098498664,0.0633,111100.0,111090.0,0.1799712]
[1752098498862,0.0633,111100.0,111090.0,1.64960987]
[1752098499365,0.0302,111100.0,111090.0,1.64960987]
[1752098499568,0.0302,111100.0,111090.0,1.68080987]
[1752098500063,0.0618,111100.0,111090.0,1.43370093]
[1752098500460,0.02699,111120.0,111090.0,1.65060987]
[1752098500664,0.05859,111120.0,111110.0,0.75764774]
[1752098500860,0.10985403,111120.0,111110.0,0.77171548]
[1752098501268,0.07518,111120.0,111110.0,0.77171379]
[1752098501661,1e-07,111120.0,111110.0,1.61742273]
[1752098501867,1e-07,111120.0,111110.0,2.04002273]
[1752098502160,1e-07,111120.0,111110.0,2.06281273]
[1752098502362,0.001,111120.0,111110.0,2.06281273]
[1752098502568,1e-07,111120.0,111110.0,2.06281273]
[1752098502770,1e-07,111120.0,111110.0,2.07336064]
[1752098503158,1e-07,111120.0,111110.0,1.63954276]
[1752098503662,1e-07,111120.0,111110.0,1.64154276]
[1752098503865,0.002,111130.0,111120.0,0.1799227]
[1752098503866,1e-07,111130.0,111120.0,0.1799227]
[1752098504067,1e-07,111130.0,111120.0,0.63404571]
[1752098504360,1e-07,111130.0,111120.0,1.09065359]
[1752098507467,1e-07,111130.0,111120.0,1.59065359]
[1752098507667,1e-07,111130.0,111120.0,1.15683571]
[1752098507867,1e-07,111130.0,111120.0,1.59065359]
[1752098509771,1e-07,111130.0,111120.0,1.59365359]
[1752098509970,1e-07,111130.0,111120.0,1.59765259]
[1752098511773,1e-07,111130.0,111120.0,1.60819912]
[1752098513072,1e-07,111130.0,111120.0,1.60819914]
[1752098518077,1e-07,111130.0,111120.0,1.62369914]
[1752098518778,0.0612001,111130.0,111120.0,1.62369914]
[1752098519072,0.0612001,111130.0,111120.0,1.62369913]
[1752098519478,0.0612001,111130.0,111120.0,1.59169913]
[1752098520071,0.0612001,111130.0,111120.0,2.21949913]
[1752098520375,0.0612001,111130.0,111120.0,2.18829913]
[1752098520977,0.0612001,111130.0,111120.0,1.32080019]
[1752098520978,0.0777901,111130.0,111120.0,1.32080019]
[1752098521178,0.31774462,111130.0,111120.0,1.10389125]
[1752098521371,0.33647754,111130.0,111120.0,1.10389125]
[1752098521572,0.33647754,111130.0,111120.0,1.32080019]
[1752098521774,0.33647754,111130.0,111120.0,0.82080019]
[1752098521977,1.34416248,111130.0,111120.0,0.03656202]
[1752098522175,0.1799227,111120.0,111110.0,0.1799278]
[1752098522370,0.1799389,111110.0,111100.0,0.01732413]
[1752098522579,0.1799551,111100.0,111090.0,0.00717305]
[1752098522880,0.1799713,111090.0,111080.0,0.2249743]
[1752098523184,0.48260254,111090.0,111080.0,0.1799797]
[1752098523373,0.84340254,111090.0,111080.0,0.1799797]
[1752098523680,0.1799875,111080.0,111070.0,0.22679009]
[1752098523882,0.90633086,111080.0,111070.0,0.18179149]
[1752098524071,1.35516829,111080.0,111070.0,0.00180059]
[1752098524382,1.35516829,111080.0,111070.0,0.18180429]
[1752098524678,1.35516829,111080.0,111070.0,0.19235773]
[1752098525180,2.61172829,111080.0,111070.0,0.00180059]
[1752098525382,0.1800199,111060.0,111050.0,0.24231055]
[1752098525578,1.7487943,111060.0,111050.0,0.14251055]
[1752098525782,1.7487943,111060.0,111040.0,0.45262667]
[1752098525783,0.1800361,111050.0,111040.0,0.27186577]
[1752098525980,0.2216161,111050.0,111040.0,0.28242136]
[1752098526282,0.66986,111050.0,111040.0,0.27186577]
[1752098526481,0.8498961,111050.0,111040.0,0.27186577]
[1752098526682,1.46297765,111050.0,111040.0,0.18184017]
[1752098526984,1.89308165,111050.0,111040.0,0.18185337]
[1752098527186,1.89308165,111050.0,111040.0,0.00180107]
[1752098527684,1.89308165,111050.0,111040.0,0.18185337]
[1752098528276,1.64308165,111050.0,111040.0,0.18185337]
[1752098528787,1.70760687,111050.0,111040.0,0.18185337]
[1752098529676,1.49069793,111050.0,111040.0,0.18185337]
[1752098529881,1.70760687,111050.0,111040.0,0.18185337]
[1752098530081,1.31054183,111050.0,111040.0,0.18185337]
[1752098530282,0.77091783,111050.0,111040.0,0.19820337]
[1752098530484,0.77091783,111050.0,111040.0,0.39876231]
[1752098530678,0.14147783,111050.0,111040.0,0.19820337]
[1752098530989,0.68168783,111050.0,111040.0,0.43968231]
[1752098531184,0.64639,111050.0,111040.0,0.82426231]
[1752098531389,0.01659,111050.0,111040.0,0.82426231]
[1752098531593,0.01659,111050.0,111040.0,0.86518231]
[1752098531793,0.64651,111050.0,111040.0,0.86718231]
[1752098532394,0.01659,111050.0,111040.0,0.86718231]
[1752098532596,0.64504,111050.0,111040.0,0.86718231]
[1752098532797,0.64504,111050.0,111040.0,0.92126425]
[1752098535801,0.64504,111050.0,111040.0,0.65027337]
[1752098535998,0.01854744,111060.0,111050.0,0.1800361]
[1752098536200,0.64810744,111060.0,111050.0,0.87562698]
[1752098536402,0.66318744,111060.0,111050.0,0.89197698]
[1752098536705,0.66318744,111060.0,111050.0,0.87562698]
[1752098536904,0.66318744,111060.0,111050.0,0.6209861]
[1752098537106,4e-08,111060.0,111050.0,0.89197698]
[1752098537901,1.89966143,111080.0,111070.0,0.1800037]
[1752098538101,1.93508371,111080.0,111070.0,0.82814458]
[1752098538301,1.93508371,111080.0,111070.0,0.89194458]
[1752098538502,1.29900371,111080.0,111070.0,0.91651458]
[1752098538702,1.93496371,111080.0,111070.0,0.55571458]
[1752098538903,1.93496371,111080.0,111070.0,0.91651458]
[1752098539300,1.93496371,111080.0,111070.0,0.55571458]
[1752098539506,1.93496371,111080.0,111070.0,0.91651458]
[1752098539900,2.07952893,111080.0,111070.0,0.6209537]
[1752098540307,2.07952893,111080.0,111070.0,0.6046037]
[1752098540512,2.10249893,111080.0,111070.0,0.5408037]
[1752098540714,2.10249893,111080.0,111070.0,0.1810037]
[1752098540715,3.0145941,111080.0,111070.0,0.1810037]
[1752098541012,0.1800199,111060.0,111040.0,0.46978454]
[1752098541212,0.2479983,111060.0,111050.0,0.1800361]
[1752098541408,0.9493183,111060.0,111050.0,0.1800361]
[1752098541609,0.1800361,111050.0,111040.0,0.75993484]
[1752098542011,0.1800361,111050.0,111040.0,0.41548484]
[1752098542207,0.1800361,111050.0,111040.0,0.41948484]
[1752098542613,0.1800361,111050.0,111040.0,0.78028484]
[1752098542812,0.1800361,111050.0,111040.0,1.05127572]